fUSD/lending_fUSD_20240218
["ID","MTS","AMOUNT","RATE_DAILY","PERIOD"]
[314405750,1708295445864,-4094.82,0.000396,3]
[314405751,1708295445873,-4094.82,0.000396,3]
[314405752,1708295445882,-4094.82,0.000396,3]
[314405753,1708295445891,-4094.82,0.000396,3]
[314405754,1708295445899,-4094.82,0.000396,3]
[314405755,1708295445909,-4094.82,0.000396,3]
[314405756,1708295445918,-4094.82,0.000396,3]
[314405757,1708295445928,-4094.82,0.000396,3]
[314405758,1708295445937,-4094.82,0.000396,3]
[314405759,1708295445946,-4094.82,0.000396,3]
[314405760,1708295445954,-4094.82,0.000396,3]
[314405761,1708295445964,-4094.82,0.000396,3]
[314405762,1708295445973,-333.44,0.00039624,2]
[314405763,1708295445982,-155.0,0.00039638,2]
[314405764,1708295445992,-430.54820773,0.00039709,13]
[314405765,1708295446001,-426.81950867,0.00039759,2]
[314405766,1708295446010,-1298.76042179,0.00039759,2]
[314405767,1708295446018,-515.97006644,0.00039763,12]
[314405768,1708295446028,-1131.5513878,0.000398,7]
[314405769,1708295446037,-1000.0,0.000398,2]
[314405770,1708295446046,-672.6403,0.000398,2]
[314405771,1708295446056,-500.0,0.000398,2]
[314405772,1708295446065,-456.6645,0.000398,2]
[314405773,1708295446074,-1250.46,0.00039808,2]
[314405774,1708295446084,-333.44,0.00039818,2]
[314405775,1708295446093,-151.0,0.00039842,4]
[314405776,1708295446103,-16398.17971536,0.0003988,2]
[314405777,1708295446114,-603.5,0.00039899,2]
[314405778,1708295446125,-627.49,0.00039899,2]
[314405779,1708295446135,-1431.65,0.00039899,2]
[314405780,1708295446144,-150.0,0.00039899,2]
[314405781,1708295446154,-170.36146497,0.00039899,2]
[314405782,1708295446163,-33242.938273,0.000399,2]
[314405783,1708295446173,-8371.1,0.000399,30]
[314405784,1708295446183,-170.832469,0.000399,2]
[314405785,1708295446193,-1414.09,0.000399,30]
[314405786,1708295446202,-1299.9985726,0.000399,2]
[314405787,1708295446213,-261.19647275,0.000399,2]
[314405788,1708295446222,-1784.05963177,0.000399,2]
[314405789,1708295446233,-19181.33175114,0.000399,2]
[314405790,1708295446243,-771.98404556,0.000399,2]
[314405791,1708295446252,-430.54820773,0.000399,13]
[314405792,1708295446262,-603.5,0.00039972,2]
[314405793,1708295446270,-603.5,0.00039972,2]
[314405794,1708295446279,-603.5,0.00039972,2]
[314405795,1708295446289,-627.49,0.00039972,2]
[314405796,1708295446298,-627.49,0.00039972,2]
[314405797,1708295446308,-627.49,0.00039972,2]
[314405798,1708295446317,-1431.65,0.00039972,2]
[314405799,1708295446326,-1431.65,0.00039972,2]
[314405800,1708295446335,-1431.65,0.00039972,2]
[314405801,1708295446345,-387.676003,0.00039973,2]
[314405802,1708295446354,-387.676003,0.00039973,2]
[314405803,1708295446364,-45489.4098289,0.00039973,2]
[314405804,1708295446373,-36208.4337778,0.00039973,2]
[314405805,1708295446382,-12089.8370765,0.00039973,2]
[314405806,1708295446392,-9623.2082767,0.00039973,2]
[314405807,1708295446401,-487222.4059983,0.00039973,2]
[314405808,1708295446411,-387816.8630674,0.00039973,2]
[314405809,1708295446420,-603.5,0.00039998,2]
[314405810,1708295446430,-627.49,0.00039998,2]
[314405811,1708295446440,-1431.65,0.00039998,2]
[314405812,1708295446449,-150.0,0.00039998,2]
[314405813,1708295446459,-170.36146497,0.00039998,2]
[314405814,1708295446469,-3318.4901846,0.00039999,2]
[314405815,1708295446479,-51613.75465524,0.00039999,2]
[314405816,1708295446491,-150.01,0.00039999,2]
[314405817,1708295446499,-159.52676107,0.00039999,31]
[314405818,1708295446509,-437.39912275,0.00039999,31]
[314405819,1708295446518,-603.5,0.00039999,2]
[314405820,1708295446527,-603.5,0.00039999,2]
[314405821,1708295446537,-603.5,0.00039999,2]
[314405822,1708295446546,-603.5,0.00039999,2]
[314405823,1708295446556,-603.5,0.00039999,2]
[314405824,1708295446565,-603.61,0.00039999,2]
[314405825,1708295446575,-627.49,0.00039999,2]
[314405826,1708295446584,-627.49,0.00039999,2]
[314405827,1708295446594,-627.49,0.00039999,2]
[314405828,1708295446604,-627.49,0.00039999,2]
[314405829,1708295446614,-627.49,0.00039999,2]
[314405830,1708295446624,-627.55,0.00039999,2]
[314405831,1708295446634,-551.37846634,0.00039999,2]
[314405832,1708295446816,-880.27153366,0.00039999,2]
[314405833,1708295446826,-1431.65,0.00039999,2]
[314405834,1708295446835,-1431.65,0.00039999,2]
[314405835,1708295446845,-1431.65,0.00039999,2]
[314405836,1708295446854,-1431.65,0.00039999,2]
[314405837,1708295446863,-1431.76,0.00039999,2]
[314405838,1708295446872,-150.0,0.00039999,2]
[314405839,1708295446882,-170.36146497,0.00039999,2]
[314405840,1708295446891,-150.0,0.00039999,2]
[314405841,1708295446901,-170.36146497,0.00039999,2]
[314405842,1708295446910,-150.0,0.00039999,2]
[314405843,1708295446921,-170.36146497,0.00039999,2]
[314405844,1708295446930,-150.0,0.00039999,2]
[314405845,1708295446939,-150.0,0.00039999,2]
[314405846,1708295446948,-170.36146497,0.00039999,2]
[314405847,1708295446958,-170.36146497,0.00039999,2]
[314405848,1708295446967,-1000.0,0.0004,2]
[314405849,1708295446976,-246896.31069677,0.0004,2]
[314405850,1708295446990,-688.8916614,0.0004,2]
[314405851,1708295446999,-4790.46723416,0.0004,2]
[314405852,1708295447008,-100709.05878239,0.0004,30]
[314405853,1708295447018,-275.02,0.0004,15]
[314405854,1708295447027,-3200.0,0.0004,4]
[314405855,1708295447039,-1019.0,0.0004,30]
[314405856,1708295447048,-312.28188668,0.0004,120]
[314405857,1708295447058,-32500.0,0.0004,4]
[314405858,1708295447068,-3481.2999,0.0004,30]
[314405859,1708295447078,-100210.08046101,0.0004,2]
[314405860,1708295447087,-220.0,0.0004,120]
[314405861,1708295447096,-330384.64490884,0.0004,30]
[314405862,1708295447105,-300.0,0.0004,41]
[314405863,1708295447115,-500000.0,0.0004,4]
[314405864,1708295447124,-738.06680651,0.0004,2]
[314405865,1708295447135,-3266.08,0.0004,30]
[314405866,1708295447145,-16426.42775038,0.0004,2]
[314405867,1708295447154,-744.2287202,0.0004,7]
[314405868,1708295447163,-10000.0,0.0004,10]
[314405869,1708295447173,-10000.0,0.0004,10]
[314405870,1708295447183,-558.25654601,0.0004,5]
[314405871,1708295447192,-6114.96722741,0.0004,30]
[314405872,1708295447201,-500.0,0.0004,4]
[314405873,1708295447210,-2000.0,0.0004,5]
[314405874,1708295447219,-2000.0,0.0004,5]
[314405875,1708295447229,-1000.0,0.0004,120]
[314405876,1708295447240,-688.44646767,0.0004,3]
[314405877,1708295447250,-1239.83559134,0.0004,60]
[314405878,1708295447259,-1000.0,0.0004,10]
[314405879,1708295447268,-1000.0,0.0004,120]
[314405880,1708295447278,-10000.0,0.0004,14]
[314405881,1708295447287,-2019.5566,0.0004,5]
[314405882,1708295447296,-2012.9531,0.0004,5]
[314405883,1708295447306,-210.0,0.0004,2]
[314405884,1708295447315,-213.0,0.0004,2]
[314405885,1708295447324,-216.0,0.0004,2]
[314405886,1708295447333,-214.0,0.0004,2]
[314405887,1708295447342,-413.14060866,0.0004,30]
[314405888,1708295447351,-210.0,0.0004,2]
[314405889,1708295447360,-1000.0,0.0004,10]
[314405890,1708295447369,-772803.88292373,0.0004,30]
[314405891,1708295447382,-825.20607133,0.0004,30]
[314405892,1708295447393,-557.46681115,0.0004,30]
[314405893,1708295447414,-505.26035094,0.0004,30]
[314405894,1708295447430,-22467.84820654,0.0004,30]
[314405895,1708295447442,-1085221.61352211,0.0004,30]
[314405896,1708295447572,-500.0,0.00037698,2]
[314405897,1708295447582,-28951.01594637,0.0004,30]
[314405898,1708295447598,-26144.2032286,0.0004,30]
[314405899,1708295447610,-1021.90720421,0.0004,30]
[314405900,1708295447621,-1040.55993284,0.0004,30]
[314405901,1708295447632,-5223.6,0.0004,30]
[314405902,1708295447643,-5755.8,0.0004,30]
[314405903,1708295449680,-500.0,0.00037698,2]
[314405904,1708295449689,-191.01542904,0.00037797,2]
[314405905,1708295449699,-336.72,0.00037798,2]
[314405906,1708295449708,-191.01542904,0.00037808,2]
[314405907,1708295449718,-1231.0,0.00037937,2]
[314405908,1708295449727,-234.20695576,0.00039499,4]
[314405909,1708295449737,-422362.71125659,0.0004,30]
[314405910,1708295449749,-57398.3675998,0.0004,30]
[314405911,1708295449760,-5672.72944444,0.0004,30]
[314405912,1708295449780,-2262.83599208,0.0004,30]
[314405913,1708295449790,-667.96932104,0.0004,30]
[314405914,1708295449798,-299.95859927,0.0004,30]
[314405915,1708295449807,-279.84669899,0.0004,30]
[314405916,1708295449816,-19280.97932187,0.0004,2]
[314405917,1708295449825,-186.0172024,0.0004,30]
[314405918,1708295449834,-226.0,0.0004,29]
[314405919,1708295449843,-448.99812065,0.0004,30]
[314405920,1708295449852,-255.0,0.0004,12]
[314405921,1708295449861,-500.0,0.0004,14]
[314405923,1708295449870,-255.0,0.0004,12]
[314405924,1708295449879,-636.17987101,0.0004,30]
[314405925,1708295449888,-3000.0,0.0004,41]
[314405926,1708295449898,-200.0,0.0004,15]
[314405927,1708295449907,-255.0,0.0004,12]
[314405928,1708295449916,-238.478187,0.0004,12]
[314405929,1708295449926,-238.478187,0.0004,12]
[314405930,1708295449935,-238.478187,0.0004,12]
[314405931,1708295449945,-238.478187,0.0004,12]
[314405932,1708295449954,-1000.0,0.0004,2]
[314405933,1708295449963,-255.0,0.0004,12]
[314405934,1708295449972,-1991.238766,0.0004,12]
[314405935,1708295449982,-1991.238766,0.0004,12]
[314405936,1708295449992,-1991.238767,0.0004,12]
[314405937,1708295450001,-1991.238766,0.0004,12]
[314405938,1708295450010,-255.0,0.0004,12]
[314405939,1708295450019,-517.3652103,0.0004,30]
[314405940,1708295450029,-255.0,0.0004,12]
[314405941,1708295450038,-150.0,0.0004,15]
[314405942,1708295450047,-300.0,0.0004,6]
[314405943,1708295450057,-200.0,0.0004,2]
[314405944,1708295450066,-5005.2,0.0004,2]
[314405945,1708295450076,-255.0,0.0004,12]
[314405946,1708295450085,-151.0,0.0004,11]
[314405947,1708295450094,-919.3083714,0.0004,2]
[314405948,1708295450104,-300.0,0.0004,2]
[314405949,1708295450114,-151.0,0.0004,2]
[314405950,1708295450126,-231.4136756,0.0004,2]
[314405951,1708295450135,-90515.56174711,0.0004,2]
[314405952,1708295450145,-122998.61695783,0.0004,2]
[314405954,1708296435476,-808.90122499,0.00024999,2]
[314405955,1708296435498,-550.0,0.00025,3]
[314405956,1708296435519,-15000.0,0.00026,2]
[314405957,1708296435541,-600.0,0.00027,3]
[314405958,1708296435561,-173.87,0.00028462,2]
[314405959,1708296435778,-650.0,0.00029,3]
[314405960,1708296454537,-700.0,0.00031,3]
[314405961,1708296454560,-207.0,0.00032582,2]
[314405962,1708296454581,-1609.3272,0.000327,2]
[314405963,1708296454602,-1843.0,0.000328,2]
[314405964,1708296454623,-750.0,0.00033,3]
[314405965,1708296465201,-682.06,0.00033406,2]
[314405966,1708296475905,-479.41,0.0003523,2]
[314405967,1708296475927,-500.0,0.00035267,2]
[314405968,1708296475948,-264.22,0.0003527,2]
[314405969,1708296475970,-155.88,0.00035297,2]
[314405970,1708296475991,-250.0,0.00035438,2]
[314405971,1708296476013,-777.56,0.00035475,2]
[314405972,1708296476034,-436.66,0.00035479,2]
[314405973,1708296476056,-775.54,0.00035481,2]
[314405974,1708296476077,-537.1485,0.00035482,2]
[314405975,1708296476097,-499.99,0.00035482,2]
[314405976,1708296476118,-200.0,0.00035502,2]
[314405977,1708296476139,-182.42,0.00035504,2]
[314405978,1708296476161,-2000.0,0.00035504,2]
[314405979,1708296476183,-250.0,0.0003555,2]
[314405980,1708296476205,-250.0,0.00035557,111]
[314405981,1708296476225,-270.13,0.00035584,2]
[314405982,1708296476247,-221.51,0.00035636,2]
[314405983,1708296476269,-682.06,0.0003567,2]
[314405984,1708296476292,-1309.13,0.00035707,2]
[314405985,1708296476315,-162.23,0.00035769,2]
[314405986,1708296476336,-221.51,0.00035823,2]
[314405987,1708296476357,-221.51,0.00036011,2]
[314405988,1708296476378,-221.51,0.00036198,2]
[314405989,1708296476401,-162.23,0.00036235,2]
[314405990,1708296476424,-184.0,0.00036376,2]
[314405991,1708296476446,-166.5,0.00036383,2]
[314405992,1708296476468,-221.51,0.00036386,2]
[314405993,1708296476488,-154.54387429,0.00036386,2]
[314405994,1708296476510,-225.0,0.00036391,2]
[314405995,1708296476533,-224.46,0.0003642,2]
[314405996,1708296476554,-166.17,0.00036487,2]
[314405997,1708296476576,-221.51,0.00036574,2]
[314405998,1708296476597,-155.0,0.00036595,2]
[314405999,1708296476620,-162.23,0.00036701,2]
[314406000,1708296476644,-221.51,0.00036761,2]
[314406001,1708296476665,-436.66,0.00036792,2]
[314406002,1708296476685,-167.23,0.00036891,2]
[314406003,1708296476706,-354.68,0.000369,2]
[314406004,1708296476725,-500.0,0.000369,2]
[314406005,1708296476751,-221.51,0.00036949,2]
[314406006,1708296520774,2984.2861,0.000259,2]
[314406015,1708296602584,162.23,0.00036772,2]
[314406028,1708296634345,-155.88,0.00037062,2]
[314406029,1708296634355,-207.0,0.00037066,2]
[314406030,1708296634365,-777.56,0.00037119,2]
[314406031,1708296634375,-221.51,0.00037136,2]
[314406032,1708296634385,-1697.06774403,0.00037287,2]
[314406033,1708296634454,-346.176,0.00037287,2]
[314406034,1708296634467,-456.75625597,0.00037287,2]
[314406035,1708296634481,-163.56849126,0.00037287,2]
[314406036,1708296634490,-1019.09829589,0.00037287,2]
[314406037,1708296634513,-281.03327708,0.00037287,2]
[314406038,1708296634522,-258.97330482,0.00037287,2]
[314406039,1708296634534,-1383.33138782,0.00037287,2]
[314406040,1708296634543,-658.79781682,0.00037287,2]
[314406041,1708296634552,-66.65806141,0.00037324,2]
[314406042,1708296634571,-154.85193859,0.00037324,2]
[314406043,1708296634580,-658.79781681,0.00037337,2]
[314406044,1708296634590,-163.56849123,0.00037365,2]
[314406045,1708296634599,-103.19252823,0.00037385,4]
[314406084,1708296639757,-539.7083767,0.00037385,4]
[314406085,1708296639769,-1000.0,0.00037387,2]
[314406086,1708296639780,-184544.2665,0.00037387,2]
[314406087,1708296639790,-200.29212223,0.00037387,8]
[314406088,1708296639802,-658.79781681,0.00037387,2]
[314406089,1708296639814,-168.49,0.00037397,2]
[314406090,1708296639826,-163.56849123,0.00037443,2]
[314406091,1708296639837,-500.0,0.00037448,2]
[314406092,1708296639848,-107020.612471,0.00037477,10]
[314406093,1708296639860,-157.64255604,0.00037477,2]
[314406094,1708296639873,-254.22,0.00037477,2]
[314406095,1708296639885,-254.22,0.00037477,2]
[314406096,1708296639897,-500.0,0.00037486,2]
[314406097,1708296639910,-500.0,0.00037486,2]
[314406098,1708296639922,-500.0,0.00037486,2]
[314406099,1708296639934,-519.43,0.00037486,2]
[314406100,1708296639945,-500.0,0.00037486,2]
[314406101,1708296639955,-500.0,0.00037486,2]
[314406102,1708296639966,-451.44,0.00037486,2]
[314406103,1708296639977,-500.0,0.00037486,2]
[314406104,1708296639987,-542.06,0.00037486,2]
[314406105,1708296639997,-500.0,0.00037486,2]
[314406106,1708296640007,-568.24,0.00037486,2]
[314406107,1708296640019,-500.0,0.00037486,2]
[314406108,1708296640031,-195.79,0.00037486,2]
[314406109,1708296640042,-500.0,0.00037486,2]
[314406110,1708296640054,-418.30970664,0.00037486,2]
[314406111,1708296640064,-500.0,0.00037486,2]
[314406112,1708296640075,-500.0,0.00037486,2]
[314406113,1708296640088,-500.0,0.00037486,2]
[314406114,1708296640098,-500.0,0.00037486,2]
[314406116,1708296640109,-500.0,0.00037486,2]
[314406118,1708296640119,-500.0,0.00037486,2]
[314406120,1708296640130,-500.0,0.00037486,2]
[314406122,1708296640140,-500.0,0.00037486,2]
[314406124,1708296640150,-500.0,0.00037486,2]
[314406126,1708296640160,-500.0,0.00037486,2]
[314406127,1708296640171,-636.2,0.00037486,2]
[314406128,1708296640181,-500.0,0.00037486,2]
[314406129,1708296640192,-500.0,0.00037486,2]
[314406130,1708296640202,-500.0,0.00037486,2]
[314406131,1708296640212,-500.0,0.00037486,2]
[314406133,1708296640223,-500.0,0.00037486,2]
[314406135,1708296640233,-500.0,0.00037486,2]
[314406137,1708296640243,-500.0,0.00037486,2]
[314406138,1708296640254,-500.0,0.00037486,2]
[314406139,1708296640265,-176.06,0.00037486,2]
[314406141,1708296640275,-500.0,0.00037486,2]
[314406143,1708296640286,-500.0,0.00037486,2]
[314406144,1708296640296,-500.0,0.00037486,2]
[314406145,1708296640306,-574.89614851,0.00037486,2]
[314406146,1708296640316,-500.0,0.00037486,2]
[314406147,1708296640327,-500.0,0.00037486,2]
[314406148,1708296640338,-612.61,0.00037486,2]
[314406149,1708296640348,-500.0,0.00037486,2]
[314406150,1708296640358,-527.9,0.00037486,2]
[314406151,1708296640369,-500.0,0.00037486,2]
[314406152,1708296640381,-548.21,0.00037486,2]
[314406153,1708296640392,-500.0,0.00037486,2]
[314406154,1708296640403,-500.0,0.00037486,2]
[314406155,1708296640413,-299.19409798,0.00037486,2]
[314406156,1708296640424,-500.0,0.00037486,2]
[314406157,1708296640435,-36686.36004685,0.00037487,2]
[314406158,1708296640449,-4331.8977943,0.00037487,2]
[314406159,1708296640468,-20958.0151656,0.00037487,2]
[314406160,1708296640485,-2888.18386823,0.00037487,2]
[314406161,1708296640499,-5465.31686755,0.00037487,2]
[314406162,1708296640542,-251.63250001,0.00037487,2]
[314406163,1708296640557,-236183.01395746,0.00037487,2]
[314406164,1708296640569,-2487.5329,0.00037487,2]
[314406165,1708296640580,-1687.93241292,0.00037496,2]
[314406166,1708296640591,-152.71852704,0.00037497,2]
[314406167,1708296640602,-214.27716327,0.00037497,10]
[314406168,1708296640612,-221.51,0.00037511,2]
[314406169,1708296640623,-163.56849123,0.00037521,2]
[314406170,1708296640634,-479.41,0.0003757,2]
[314406171,1708296640646,-254.22,0.00037575,2]
[314406172,1708296640657,-5632.66381428,0.00037584,10]
[314406173,1708296640668,-500.0,0.00037584,2]
[314406174,1708296640679,-500.0,0.00037584,2]
[314406175,1708296640690,-500.0,0.00037584,2]
[314406176,1708296640701,-254.22,0.00037585,2]
[314406177,1708296640711,-254.22,0.00037585,2]
[314406178,1708296640722,-51296.42823059,0.00037585,10]
[314406179,1708296640741,-615.0,0.00037585,10]
[314406180,1708296640758,-59762.07792068,0.00037585,10]
[314406181,1708296640772,-12245.09776273,0.00037585,10]
[314406182,1708296640784,-157.64255604,0.00037587,2]
[314406183,1708296640795,-170.98,0.00037594,2]
[314406184,1708296640806,-500.0,0.00037594,2]
[314406185,1708296640816,-606.4849071,0.00037594,2]
[314406186,1708296640828,-500.0,0.00037594,2]
[314406187,1708296640838,-476.07,0.00037594,2]
[314406188,1708296640848,-500.0,0.00037594,2]
[314406189,1708296640859,-285.81,0.00037594,2]
[314406190,1708296640870,-500.0,0.00037594,2]
[314406191,1708296640880,-611.8389,0.00037594,2]
[314406192,1708296640890,-26638.57587413,0.00037595,3]
[314406193,1708296641326,-331.56512726,0.00037595,3]
[314406194,1708296641339,-26083.35,0.00037595,3]
[314406209,1708296642724,-4228.99830104,0.00037595,3]
[314406211,1708296642739,-5006.69311432,0.00037595,3]
[314406212,1708296642782,-2561.07333832,0.00037595,3]
[314406213,1708296642796,-397.68755512,0.00037595,3]
[314406214,1708296643328,-2621.62345,0.00037595,3]
[314406215,1708296643342,-721.775,0.00037595,3]
[314406216,1708296643385,-2393.38865318,0.00037595,3]
[314406217,1708296643398,-31991.49179232,0.00037595,3]
[314406218,1708296643497,-6780.18046025,0.00037595,3]
[314406219,1708296643510,-1176.01467312,0.00037595,3]
[314406220,1708296643524,-24288.65819928,0.00037595,3]
[314406221,1708296643537,-11955.20439353,0.00037595,3]
[314406222,1708296643551,-1321.86465,0.00037595,3]
[314406223,1708296643566,-13833.184442,0.00037595,3]
[314406224,1708296643580,-452.95416125,0.00037595,3]
[314406226,1708296643610,-1017.00677308,0.00037595,3]
[314406444,1708296645739,-30923.13915494,0.00037595,3]
[314406447,1708296645751,-24804.88204827,0.00037595,3]
[314406449,1708296645767,-209326.68159828,0.00037595,3]
[314406453,1708296645793,-11597.15485065,0.00037595,3]
[314406455,1708296645803,-175131.06927754,0.00037595,2]
[314406461,1708296645851,-15229.52815351,0.00037595,2]
[314406469,1708296645907,-5720.9252866,0.00037595,2]
[314406496,1708296646108,-8333.89467201,0.00037595,2]
[314406499,1708296646178,-990.88969685,0.00037595,2]
[314406502,1708296646192,-1950.7190066,0.00037595,2]
[314406842,1708296670554,53960.16310072,0.00023,2]
[314406843,1708296670590,4745185.27823715,0.00023,2]
[314406844,1708296713877,13073.32292054,0.00022789,2]
[314406845,1708296817262,332.76288222,0.0002313,2]
[314406846,1708296830446,299179.04583143,0.00023,2]
[314406848,1708296862598,211.2845134,0.000137,2]
[314406855,1708297571271,150.69443588,0.00024725,2]
[314406856,1708297642526,1035.0,0.0002475,3]
[314406857,1708297705245,790.793817,0.00024739,2]
[314406861,1708297723697,-130210.83362498,0.00025089,2]
[314406862,1708297723718,-3155.86783963,0.0002509,2]
[314406863,1708297723740,-18575.12496667,0.0002509,2]
[314406864,1708297725783,1047.95568762,0.00025088,2]
[314406874,1708297831922,-1059.27197256,0.00026282,2]
[314406875,1708297831937,-1153.450029,0.00026282,2]
[314406876,1708297831981,-952.14196951,0.00026282,2]
[314406877,1708297831995,-415.03901403,0.00026282,2]
[314406878,1708297832009,-5643.9982,0.00026282,2]
[314406879,1708297832046,-765.18057038,0.00026282,2]
[314406880,1708297832059,-467.8057218,0.00026282,2]
[314406881,1708297832164,-562.42067576,0.00026282,2]
[314406882,1708297832178,-1.55563016,0.00026282,2]
[314406883,1708297832189,-458.19760719,0.000263,2]
[314406884,1708297832203,-3213.0006693,0.000263,2]
[314406885,1708297832216,-655.15025058,0.000263,2]
[314406886,1708297832232,-5359.65149454,0.000263,2]
[314406887,1708297832243,-158.7711013,0.00027297,2]
[314406888,1708297832256,-155.0,0.00027397,2]
[314406889,1708297832270,-200.0,0.00028,2]
[314406890,1708297832281,-155.0,0.00028767,2]
[314406892,1708297832292,-1047.95568762,0.00029404,2]
[314406895,1708297832303,-158.77110127,0.00029405,2]
[314406897,1708297832313,-6223.97519198,0.000299,2]
[314406899,1708297832323,-999.99,0.000299,2]
[314406901,1708297832335,-96866.08525686,0.00029999,2]
[314406904,1708297832354,-314.63689181,0.00029999,2]
[314406906,1708297832364,-10121.36310819,0.0003,2]
[314406917,1708297837955,-561.22252724,0.0003,2]
[314406918,1708297837967,-278.20064693,0.0003,2]
[314406919,1708297837980,-894.44295914,0.0003,2]
[314406920,1708297837992,-7174.36729539,0.0003,2]
[314406921,1708297838005,-11988.0358341,0.0003,2]
[314406922,1708297838076,-4713.15512457,0.0003,2]
[314406923,1708297838135,-420672.38642825,0.0003,2]
[314406924,1708297838145,-200.29212222,0.00030037,4]
[314406925,1708297838154,-155.0,0.00030137,2]
[314406926,1708297838163,-157.64255603,0.00031308,2]
[314406927,1708297838172,-25343.11,0.00031318,2]
[314406928,1708297838181,-25343.11,0.00031499,2]
[314406929,1708297838190,-155.0,0.00031507,2]
[314406930,1708297838199,-158.77110127,0.00031512,2]
[314406931,1708297838208,-379.56,0.00031593,2]
[314406932,1708297838217,-25343.11,0.0003168,2]
[314406933,1708297838227,-130298.904373,0.000318,3]
[314406934,1708297838236,-25343.11,0.00031861,2]
[314406935,1708297838245,-25343.11,0.00032042,2]
[314406936,1708297838254,-162.23,0.0003214,2]
[314406937,1708297838263,-25343.11,0.00032223,2]
[314406938,1708297838273,-12708.0,0.000323,2]
[314406939,1708297838282,-25343.11,0.00032404,2]
[314406940,1708297838291,-25343.11,0.00032585,2]
[314406941,1708297838300,-25343.11,0.00032766,2]
[314406942,1708297838309,-2000.0,0.00032819,2]
[314406943,1708297838318,-220.18,0.00032857,2]
[314406944,1708297838327,-155.88,0.00032897,2]
[314406945,1708297838338,-666.47,0.00032897,2]
[314406946,1708297838348,-25343.11,0.00032947,2]
[314406947,1708297838357,-158.77110127,0.0003362,2]
[314406948,1708297838366,-620.44,0.00033882,2]
[314406949,1708297838375,-152.7176106,0.000339,2]
[314406950,1708297838385,-152.7176105,0.00034014,2]
[314406951,1708297838394,-205.0,0.00034066,2]
[314406952,1708297838403,-184.05,0.00034156,2]
[314406953,1708297838412,-1090.94,0.0003428,2]
[314406954,1708297838421,-184.05,0.00034336,2]
[314406955,1708297838430,-208.84,0.0003436,2]
[314406956,1708297838439,-184.05,0.00034516,2]
[314406957,1708297838448,-762.18,0.00034521,2]
[314406958,1708297838457,-666.47,0.00034541,2]
[314406959,1708297838466,-184.05,0.00034695,2]
[314406960,1708297838475,-184.05,0.00034875,2]
[314406961,1708297838484,-1689.51734822,0.000349,2]
[314406962,1708297838493,-1689.51734807,0.000349,2]
[314406963,1708297838502,-1689.51734807,0.000349,2]
[314406964,1708297838511,-1689.51734807,0.000349,2]
[314406965,1708297838521,-184.05,0.00035055,2]
[314406966,1708297838530,-184.05,0.00035235,2]
[314406967,1708297838539,-152.7176105,0.00035277,2]
[314406968,1708297838549,-184.05,0.00035415,2]
[314406969,1708297838558,-379.56,0.00035542,2]
[314406970,1708297838567,-184.05,0.00035594,2]
[314406971,1708297838577,-991.0,0.000356,2]
[314406972,1708297838587,-479.41,0.0003561,2]
[314406973,1708297838597,-500.0,0.00035616,2]
[314406974,1708297838606,-553.21,0.00035616,2]
[314406975,1708297838615,-553.21,0.00035616,2]
[314406976,1708297838625,-553.21,0.00035616,2]
[314406977,1708297838633,-553.21,0.00035616,2]
[314406978,1708297838643,-500.0,0.00035616,2]
[314406979,1708297838652,-375.46867968,0.00035616,2]